lending/lending_fUSD_20250218
["ID","MTS","AMOUNT","RATE_DAILY","PERIOD"]
[353485458,1739877085456,-670.36,0.00014273,2]
[353485459,1739877085466,-500.0,0.00014273,2]
[353485460,1739877085475,-500.0,0.00014273,2]
[353485461,1739877085485,-520.18,0.00014273,2]
[353485462,1739877085495,-1067.02,0.00014273,2]
[353485463,1739877085504,-524.23304653,0.00014273,2]
[353485464,1739877085518,-500.0,0.00014273,2]
[353485465,1739877085527,-500.0,0.00014273,2]
[353485466,1739877085537,-2188.24,0.00014273,2]
[353485467,1739877085547,-500.0,0.00014273,2]
[353485468,1739877085557,-500.0,0.00014273,2]
[353485469,1739877085567,-500.0,0.00014273,2]
[353485470,1739877085586,-500.0,0.00014273,2]
[353485471,1739877085596,-500.0,0.00014273,2]
[353485472,1739877085606,-500.0,0.00014273,2]
[353485473,1739877085616,-898.16,0.00014273,2]
[353485474,1739877085626,-602.92,0.00014273,2]
[353485475,1739877085635,-500.0,0.00014273,2]
[353485476,1739877085645,-1048.16,0.00014273,2]
[353485477,1739877085654,-500.0,0.00014273,2]
[353485478,1739877085663,-500.0,0.00014273,2]
[353485479,1739877085672,-621.95,0.00014273,2]
[353485480,1739877085681,-518.748622,0.00014273,2]
[353485481,1739877085692,-1487.86,0.00014273,2]
[353485482,1739877085701,-500.0,0.00014273,2]
[353485483,1739877085712,-500.0,0.00014273,2]
[353485484,1739877085722,-500.0,0.00014273,2]
[353485485,1739877085731,-1097.77,0.00014273,2]
[353485486,1739877085741,-666.53,0.00014273,2]
[353485487,1739877085750,-686.57,0.00014273,2]
[353485488,1739877085760,-1429.19,0.00014273,2]
[353485489,1739877085770,-500.0,0.00014273,2]
[353485490,1739877085779,-795.84,0.00014273,2]
[353485491,1739877085789,-500.0,0.00014273,2]
[353485492,1739877085798,-548.63,0.00014273,2]
[353485493,1739877085807,-2430.58,0.00014273,2]
[353485494,1739877085816,-500.0,0.00014273,2]
[353485495,1739877085825,-500.0,0.00014273,2]
[353485496,1739877085835,-500.0,0.00014273,2]
[353485497,1739877085844,-500.0,0.00014273,2]
[353485498,1739877085853,-500.0,0.00014273,2]
[353485499,1739877085863,-500.0,0.00014273,2]
[353485500,1739877085872,-500.0,0.00014273,2]
[353485501,1739877085881,-500.0,0.00014273,2]
[353485502,1739877085890,-500.0,0.00014273,2]
[353485503,1739877085900,-518.93,0.00014273,2]
[353485504,1739877085910,-500.0,0.00014273,2]
[353485505,1739877085919,-705.88,0.00014273,2]
[353485506,1739877085928,-557.81,0.00014273,2]
[353485507,1739877085938,-500.0,0.00014273,2]
[353485508,1739877085947,-500.0,0.00014273,2]
[353485509,1739877085956,-500.0,0.00014273,2]
[353485510,1739877085966,-500.0,0.00014273,2]
[353485511,1739877085975,-1474.07,0.00014273,2]
[353485512,1739877085985,-776.58,0.00014273,2]
[353485513,1739877085995,-304.37650052,0.00014273,2]
[353485514,1739877086006,-544.55,0.00014273,2]
[353485515,1739877086015,-748.3,0.00014273,2]
[353485516,1739877086025,-500.0,0.00014273,2]
[353485517,1739877086035,-522.76,0.00014273,2]
[353485518,1739877086044,-578.59,0.00014273,2]
[353485519,1739877086053,-500.0,0.00014273,2]
[353485520,1739877086063,-500.0,0.00014273,2]
[353485521,1739877086072,-500.0,0.00014273,2]
[353485522,1739877086082,-500.0,0.00014273,2]
[353485523,1739877086093,-982.49,0.00014273,2]
[353485524,1739877086103,-500.0,0.00014273,2]
[353485525,1739877086114,-500.0,0.00014273,2]
[353485526,1739877086123,-500.0,0.00014273,2]
[353485527,1739877086133,-1436.02,0.00014273,2]
[353485528,1739877086143,-606.5,0.00014273,2]
[353485529,1739877086153,-500.0,0.00014273,2]
[353485530,1739877086163,-709.89,0.00014273,2]
[353485531,1739877086173,-500.0,0.00014273,2]
[353485532,1739877086182,-787.7,0.00014273,2]
[353485533,1739877086192,-500.0,0.00014273,2]
[353485534,1739877086201,-500.0,0.00014273,2]
[353485535,1739877086211,-500.0,0.00014273,2]
[353485536,1739877086221,-500.0,0.00014273,2]
[353485537,1739877086230,-655.98,0.00014273,2]
[353485538,1739877086239,-500.0,0.00014273,2]
[353485539,1739877086249,-500.0,0.00014273,2]
[353485540,1739877086259,-500.0,0.00014273,2]
[353485541,1739877086268,-500.0,0.00014273,2]
[353485542,1739877086277,-500.0,0.00014273,2]
[353485543,1739877086287,-656.46,0.00014273,2]
[353485544,1739877086296,-900.9,0.00014273,2]
[353485545,1739877086306,-779.15,0.00014273,2]
[353485546,1739877086315,-500.0,0.00014273,2]
[353485547,1739877086324,-500.0,0.00014273,2]
[353485548,1739877086333,-500.0,0.00014273,2]
[353485549,1739877086343,-1866.05,0.00014273,2]
[353485550,1739877086352,-611.15,0.00014273,2]
[353485551,1739877086362,-500.0,0.00014273,2]
[353485552,1739877086371,-1442.06,0.00014273,2]
[353485553,1739877086380,-500.0,0.00014273,2]
[353485554,1739877086390,-500.0,0.00014273,2]
[353485555,1739877086399,-500.0,0.00014273,2]
[353485556,1739877086408,-500.0,0.00014273,2]
[353485557,1739877086417,-573.28,0.00014273,2]
[353485558,1739877086426,-847.82,0.00014273,2]
[353485559,1739877086435,-958.33,0.00014273,2]
[353485560,1739877086445,-523.88345562,0.00014273,2]
[353485561,1739877086583,-500.0,0.00014273,2]
[353485562,1739877086606,-647.61,0.00014273,2]
[353485563,1739877086615,-500.0,0.00014273,2]
[353485564,1739877086625,-500.0,0.00014273,2]
[353485565,1739877086635,-500.0,0.00014273,2]
[353485566,1739877086644,-509.17,0.00014273,2]
[353485567,1739877086654,-500.0,0.00014273,2]
[353485568,1739877086663,-500.0,0.00014273,2]
[353485569,1739877086672,-500.0,0.00014273,2]
[353485570,1739877086682,-500.0,0.00014273,2]
[353485571,1739877086691,-500.0,0.00014273,2]
[353485572,1739877086701,-523.64,0.00014273,2]
[353485573,1739877086711,-500.0,0.00014273,2]
[353485574,1739877086721,-505.1464509,0.00014273,2]
[353485575,1739877086730,-500.0,0.00014273,2]
[353485576,1739877086739,-879.84,0.00014273,2]
[353485577,1739877086748,-500.0,0.00014273,2]
[353485578,1739877086758,-500.0,0.00014273,2]
[353485579,1739877086767,-500.0,0.00014273,2]
[353485580,1739877086776,-885.19,0.00014273,2]
[353485581,1739877086785,-500.0,0.00014273,2]
[353485582,1739877086794,-618.92,0.00014273,2]
[353485583,1739877086805,-332.03274436,0.00014273,2]
[353485584,1739877086814,-933.15,0.00014273,2]
[353485585,1739877086823,-528.69,0.00014273,2]
[353485586,1739877086832,-500.0,0.00014273,2]
[353485587,1739877086842,-758.55,0.00014273,2]
[353485588,1739877086851,-500.0,0.00014273,2]
[353485589,1739877086861,-500.0,0.00014273,2]
[353485590,1739877086871,-551.76919743,0.00014273,2]
[353485591,1739877086881,-500.0,0.00014292,2]
[353485592,1739877086890,-500.0,0.00014323,2]
[353485593,1739877086899,-2000.0,0.00014324,4]
[353485594,1739877086909,-500.0,0.00014356,2]
[353485595,1739877086918,-500.0,0.00014356,2]
[353485596,1739877086927,-500.0,0.00014356,2]
[353485597,1739877086936,-500.0,0.00014356,2]
[353485598,1739877086945,-500.0,0.00014356,2]
[353485599,1739877086954,-500.0,0.00014356,2]
[353485600,1739877086964,-500.0,0.00014356,2]
[353485601,1739877086973,-518.14499209,0.00014356,2]
[353485602,1739877086982,-230.06628456,0.00014356,2]
[353485603,1739877086991,-500.0,0.00014356,2]
[353485604,1739877087001,-500.0,0.00014356,2]
[353485605,1739877087011,-500.0,0.00014356,2]
[353485606,1739877087020,-739.5,0.00014356,2]
[353485607,1739877087030,-500.0,0.00014356,2]
[353485608,1739877087039,-509.9034415,0.00014356,2]
[353485609,1739877087048,-500.0,0.00014356,7]
[353485610,1739877087058,-500.0,0.00014356,2]
[353485611,1739877087068,-500.0,0.00014356,2]
[353485612,1739877087077,-500.0,0.00014356,2]
[353485613,1739877087087,-500.0,0.00014356,2]
[353485614,1739877087096,-500.0,0.00014356,2]
[353485615,1739877087107,-500.0,0.00014356,2]
[353485616,1739877087117,-500.0,0.00014356,2]
[353485617,1739877087126,-500.0,0.00014356,2]
[353485618,1739877087136,-500.0,0.00014356,2]
[353485619,1739877087145,-201.98100759,0.00014356,2]
[353485620,1739877087154,-500.0,0.00014356,2]
[353485621,1739877087163,-500.0,0.00014356,2]
[353485622,1739877087172,-500.0,0.00014356,2]
[353485623,1739877087182,-500.0,0.00014356,2]
[353485624,1739877087192,-500.0,0.00014356,2]
[353485625,1739877087201,-500.0,0.00014356,2]
[353485626,1739877087210,-500.0,0.00014356,2]
[353485627,1739877087219,-500.0,0.00014356,2]
[353485628,1739877087229,-500.0,0.00014356,2]
[353485629,1739877087239,-500.0,0.00014356,2]
[353485630,1739877087248,-500.0,0.00014356,2]
[353485631,1739877087258,-563.527832,0.00014356,2]
[353485632,1739877087268,-500.0,0.00014356,2]
[353485633,1739877087277,-500.0,0.00014356,2]
[353485634,1739877087286,-500.0,0.00014356,2]
[353485635,1739877087295,-500.0,0.00014356,2]
[353485636,1739877087304,-500.0,0.00014356,2]
[353485637,1739877087314,-500.0,0.00014356,2]
[353485638,1739877087323,-500.0,0.00014356,2]
[353485639,1739877087333,-500.0,0.00014356,2]
[353485640,1739877087342,-500.0,0.00014356,2]
[353485641,1739877087351,-500.0,0.00014356,2]
[353485642,1739877087360,-500.0,0.00014356,2]
[353485643,1739877087370,-500.0,0.00014356,2]
[353485644,1739877087379,-500.0,0.00014356,2]
[353485645,1739877087388,-500.0,0.00014356,2]
[353485646,1739877087397,-500.0,0.00014356,2]
[353485647,1739877087406,-500.0,0.00014356,2]
[353485648,1739877087415,-500.0,0.00014356,2]
[353485649,1739877087424,-500.0,0.00014356,2]
[353485650,1739877087433,-500.0,0.00014356,2]
[353485651,1739877087443,-500.0,0.00014356,2]
[353485652,1739877087452,-500.0,0.00014356,2]
[353485653,1739877087461,-500.0,0.00014356,2]
[353485654,1739877087470,-500.0,0.00014356,2]
[353485655,1739877087484,-500.0,0.00014356,2]
[353485656,1739877087494,-500.0,0.00014356,2]
[353485657,1739877087504,-500.0,0.00014356,2]
[353485658,1739877087516,-500.0,0.00014356,2]
[353485659,1739877087526,-500.0,0.00014356,2]
[353485660,1739877087535,-488.045061,0.00014356,2]
[353485661,1739877087544,-500.0,0.00014356,2]
[353485662,1739877087555,-500.0,0.00014356,2]
[353485663,1739877087564,-500.0,0.00014356,2]
[353485664,1739877087573,-500.0,0.00014356,2]
[353485665,1739877087582,-500.0,0.00014356,2]
[353485666,1739877087593,-500.0,0.00014356,2]
[353485667,1739877087602,-500.0,0.00014356,2]
[353485668,1739877087612,-500.0,0.00014356,2]
[353485669,1739877087622,-500.0,0.00014356,2]
[353485670,1739877087631,-586.25,0.00014356,2]
[353485671,1739877087640,-500.0,0.00014356,2]
[353485672,1739877087649,-500.0,0.00014356,2]
[353485673,1739877087659,-500.0,0.00014356,2]
[353485674,1739877087668,-500.0,0.00014356,2]
[353485675,1739877087677,-500.0,0.00014356,2]
[353485676,1739877087686,-500.0,0.00014356,2]
[353485677,1739877087695,-500.0,0.00014356,2]
[353485678,1739877087703,-500.0,0.00014356,2]
[353485679,1739877087713,-500.0,0.00014356,2]
[353485680,1739877087722,-500.0,0.00014356,2]
[353485681,1739877087731,-500.0,0.00014356,2]
[353485682,1739877087740,-500.0,0.00014356,2]
[353485683,1739877087749,-500.0,0.00014356,2]
[353485684,1739877087759,-500.0,0.00014356,2]
[353485685,1739877087768,-500.0,0.00014356,2]
[353485686,1739877087777,-500.0,0.00014356,2]
[353485687,1739877087787,-500.0,0.00014356,2]
[353485688,1739877087796,-500.0,0.00014356,2]
[353485689,1739877087806,-584.96038994,0.00014356,2]
[353485690,1739877087815,-500.0,0.00014356,2]
[353485691,1739877087825,-378.05761846,0.00014356,2]
[353485692,1739877087834,-500.0,0.00014356,2]
[353485693,1739877087843,-500.0,0.00014356,2]
[353485694,1739877087852,-304.05340317,0.00014356,2]
[353485695,1739877087862,-500.0,0.00014356,2]
[353485696,1739877087871,-500.0,0.00014356,2]
[353485697,1739877087881,-500.0,0.00014356,2]
[353485698,1739877087890,-500.0,0.00014356,2]
[353485699,1739877087899,-500.0,0.00014356,2]
[353485700,1739877087908,-500.0,0.00014356,2]
[353485701,1739877087918,-500.0,0.00014356,2]
[353485702,1739877087928,-500.0,0.00014356,2]
[353485703,1739877087938,-500.0,0.00014356,2]
[353485704,1739877087947,-500.0,0.00014356,2]
[353485705,1739877087957,-500.0,0.00014356,2]
[353485706,1739877087966,-500.0,0.00014356,2]
[353485707,1739877087975,-500.0,0.00014356,2]
[353485708,1739877087984,-500.0,0.00014356,2]
[353485709,1739877087993,-500.0,0.00014356,2]
[353485710,1739877088003,-500.0,0.00014356,2]
[353485711,1739877088012,-251.69997709,0.00014356,2]
[353485712,1739877088021,-500.0,0.00014356,2]
[353485713,1739877088031,-500.0,0.00014356,2]
[353485714,1739877088040,-500.0,0.00014356,2]
[353485715,1739877088049,-962.99,0.00014356,2]
[353485716,1739877088058,-500.0,0.00014356,2]
[353485717,1739877088067,-500.0,0.00014356,2]
[353485718,1739877088076,-500.0,0.00014356,2]
[353485719,1739877088085,-500.0,0.00014356,2]
[353485720,1739877088094,-500.0,0.00014356,2]
[353485721,1739877088103,-500.0,0.00014356,2]
[353485722,1739877088112,-500.0,0.00014356,2]
[353485723,1739877088122,-500.0,0.00014356,2]
[353485724,1739877088131,-363.07713748,0.00014356,2]
[353485725,1739877088140,-573.6237165,0.00014356,2]
[353485726,1739877088149,-186.08334591,0.00014356,2]
[353485727,1739877088158,-275.43681776,0.00014356,2]
[353485728,1739877088167,-500.73,0.00014356,2]
[353485729,1739877088177,-538.65,0.00014356,2]
[353485730,1739877088187,-500.0,0.00014356,2]
[353485731,1739877088196,-500.0,0.00014356,2]
[353485732,1739877088205,-500.0,0.00014356,2]
[353485733,1739877088214,-500.0,0.00014356,2]
[353485734,1739877088223,-500.0,0.00014356,2]
[353485735,1739877088233,-500.0,0.00014356,2]
[353485736,1739877088242,-500.0,0.00014356,2]
[353485737,1739877088251,-500.0,0.00014356,2]
[353485738,1739877088261,-626.12826003,0.00014356,2]
[353485739,1739877088270,-500.0,0.00014356,2]
[353485740,1739877088279,-500.0,0.00014356,2]
[353485741,1739877088288,-500.0,0.00014356,2]
[353485742,1739877088297,-774.47,0.00014356,2]
[353485743,1739877088306,-500.0,0.00014356,2]
[353485744,1739877088315,-500.0,0.00014356,2]
[353485745,1739877088324,-500.0,0.00014356,2]
[353485746,1739877088334,-500.0,0.00014356,2]
[353485747,1739877088343,-743.0,0.00014356,2]
[353485748,1739877088352,-500.0,0.00014356,2]
[353485749,1739877088361,-500.0,0.00014356,2]
[353485750,1739877088371,-558.02,0.00014356,2]
[353485751,1739877088380,-206.8325151,0.00014356,2]
[353485752,1739877088389,-500.0,0.00014356,2]
[353485753,1739877088398,-500.0,0.00014356,2]
[353485754,1739877088407,-500.0,0.00014356,2]
[353485755,1739877088416,-500.0,0.00014356,2]
[353485756,1739877088425,-518.70816093,0.00014356,2]
[353485757,1739877088434,-500.0,0.00014356,2]
[353485758,1739877088444,-500.0,0.00014356,2]
[353485759,1739877088453,-500.0,0.00014356,2]
[353485760,1739877088462,-500.0,0.00014356,2]
[353485761,1739877088471,-500.0,0.00014356,2]
[353485762,1739877088481,-584.12,0.00014356,2]
[353485763,1739877088490,-500.0,0.00014356,2]
[353485764,1739877088499,-500.0,0.00014356,2]
[353485765,1739877088510,-500.0,0.00014356,2]
[353485766,1739877088520,-500.0,0.00014356,2]
[353485767,1739877088529,-500.0,0.00014356,2]
[353485768,1739877088538,-500.0,0.00014356,2]
[353485769,1739877088547,-500.0,0.00014356,2]
[353485770,1739877088558,-500.0,0.00014356,2]
[353485771,1739877088567,-500.0,0.00014356,2]
[353485772,1739877088576,-500.0,0.00014356,2]
[353485773,1739877088588,-500.0,0.00014356,2]
[353485774,1739877088597,-500.0,0.00014356,2]
[353485775,1739877088606,-500.0,0.00014356,2]
[353485776,1739877088616,-500.0,0.00014356,2]
[353485777,1739877088625,-500.0,0.00014356,2]
[353485778,1739877088634,-551.16,0.00014356,2]
[353485779,1739877088643,-500.0,0.00014356,2]
[353485780,1739877088652,-500.0,0.00014356,2]
[353485781,1739877088661,-500.0,0.00014356,2]
[353485782,1739877088670,-588.92,0.00014356,2]
[353485783,1739877088680,-500.0,0.00014356,2]
[353485784,1739877088689,-500.0,0.00014356,2]
[353485785,1739877088698,-500.0,0.00014356,2]
[353485786,1739877088707,-500.0,0.00014356,2]
[353485787,1739877088717,-500.0,0.00014356,2]
[353485788,1739877088727,-500.0,0.00014356,2]
[353485789,1739877088736,-500.0,0.00014356,2]
[353485790,1739877088745,-500.0,0.00014356,2]
[353485791,1739877088754,-500.0,0.00014356,2]
[353485792,1739877088763,-500.0,0.00014356,2]
[353485793,1739877088772,-500.0,0.00014356,2]
[353485794,1739877088781,-500.0,0.00014356,2]
[353485795,1739877088791,-500.0,0.00014356,2]
[353485796,1739877088800,-500.0,0.00014356,2]
[353485797,1739877088809,-500.0,0.00014356,2]
[353485798,1739877088818,-500.0,0.00014356,2]
[353485799,1739877088827,-500.0,0.00014356,2]
[353485800,1739877088836,-500.0,0.00014356,2]
[353485801,1739877088845,-500.0,0.00014356,2]
[353485802,1739877088855,-500.0,0.00014356,2]
[353485803,1739877088865,-500.0,0.00014356,2]
[353485804,1739877088874,-500.0,0.00014356,2]
[353485805,1739877088884,-500.0,0.00014356,2]
[353485806,1739877088892,-500.0,0.00014356,2]
[353485807,1739877088902,-500.0,0.00014356,2]
[353485808,1739877088911,-500.0,0.00014356,2]
[353485809,1739877088920,-500.0,0.00014356,2]
[353485810,1739877088930,-500.0,0.00014356,2]
[353485811,1739877088939,-500.0,0.00014356,2]
[353485812,1739877088948,-500.0,0.00014356,2]
[353485813,1739877088957,-500.0,0.00014356,2]
[353485814,1739877088966,-1082.84,0.00014356,2]
[353485815,1739877088975,-500.0,0.00014356,2]
[353485816,1739877089120,-752.03,0.00014356,2]
[353485817,1739877089129,-560.19,0.00014356,2]
[353485818,1739877089139,-500.0,0.00014356,2]
[353485819,1739877089149,-818.96,0.00014356,2]
[353485820,1739877089158,-801.32,0.00014356,2]
[353485821,1739877089167,-500.0,0.00014356,2]
[353485822,1739877089178,-500.0,0.00014356,2]
[353485823,1739877089187,-500.0,0.00014356,2]
[353485824,1739877089197,-500.0,0.00014356,2]
[353485825,1739877089206,-500.0,0.00014356,2]
[353485826,1739877089216,-500.0,0.00014356,2]
[353485827,1739877089226,-500.0,0.00014356,2]
[353485828,1739877089235,-500.0,0.00014356,2]
[353485829,1739877089244,-1481.48,0.00014356,2]
[353485830,1739877089254,-581.87,0.00014356,2]
[353485831,1739877089263,-500.0,0.00014356,2]
[353485832,1739877089272,-1000.0,0.00014356,2]
[353485833,1739877089281,-500.0,0.00014356,2]
[353485834,1739877089291,-500.0,0.00014356,2]
[353485835,1739877089300,-500.0,0.00014356,2]
[353485836,1739877089309,-628.6,0.00014356,2]
[353485837,1739877089318,-500.0,0.00014356,2]
[353485838,1739877089328,-701.28,0.00014356,2]
[353485839,1739877089337,-500.0,0.00014356,2]
[353485840,1739877089347,-500.0,0.00014356,2]
[353485841,1739877089355,-500.0,0.00014356,2]
[353485842,1739877089365,-500.0,0.00014356,2]
[353485843,1739877089375,-500.0,0.00014356,2]
[353485844,1739877089384,-654.96,0.00014356,2]
[353485845,1739877089393,-1477.37,0.00014356,2]
[353485846,1739877089403,-504.25,0.00014356,2]
[353485847,1739877089412,-924.18,0.00014356,2]
[353485848,1739877089422,-782.84,0.00014356,2]
[353485849,1739877089432,-500.0,0.00014356,2]
[353485850,1739877089441,-500.0,0.00014356,2]
[353485851,1739877089451,-935.92,0.00014356,2]
[353485852,1739877089460,-799.81,0.00014356,2]
[353485853,1739877089470,-1116.02,0.00014356,2]
[353485854,1739877089480,-519.61,0.00014356,2]
[353485855,1739877089490,-500.0,0.00014356,2]
[353485856,1739877089500,-681.29,0.00014356,2]
[353485857,1739877089511,-2075.21,0.00014356,2]
[353485858,1739877089521,-500.0,0.00014356,2]
[353485859,1739877089531,-719.93,0.00014356,2]
[353485860,1739877089540,-500.0,0.00014356,2]
[353485861,1739877089550,-500.0,0.00014356,2]
[353485862,1739877089559,-728.25,0.00014356,2]
[353485863,1739877089569,-500.0,0.00014356,2]
[353485864,1739877089579,-1047.12,0.00014356,2]
[353485865,1739877089589,-500.0,0.00014356,2]
[353485866,1739877089599,-814.73,0.00014356,2]
[353485867,1739877089609,-500.0,0.00014356,2]
[353485868,1739877089619,-500.0,0.00014356,2]
[353485869,1739877089629,-500.0,0.00014356,2]
[353485870,1739877089639,-500.0,0.00014356,2]
[353485871,1739877089648,-1505.62,0.00014356,2]
[353485872,1739877089658,-670.36,0.00014356,2]
[353485873,1739877089668,-500.0,0.00014356,2]
[353485874,1739877089678,-500.0,0.00014356,2]
[353485875,1739877089688,-520.18,0.00014356,2]
[353485876,1739877089698,-1067.02,0.00014356,2]
[353485877,1739877089707,-500.0,0.00014356,2]
[353485878,1739877089717,-500.0,0.00014356,2]
[353485879,1739877089729,-2188.24,0.00014356,2]
[353485880,1739877089738,-500.0,0.00014356,2]
[353485881,1739877089748,-500.0,0.00014356,2]
[353485882,1739877089757,-500.0,0.00014356,2]
[353485883,1739877089767,-500.0,0.00014356,2]
[353485884,1739877089777,-500.0,0.00014356,2]
[353485885,1739877089787,-500.0,0.00014356,2]
[353485886,1739877089796,-898.16,0.00014356,2]
[353485887,1739877089806,-602.92,0.00014356,2]
[353485888,1739877089815,-500.0,0.00014356,2]
[353485889,1739877089825,-1048.16,0.00014356,2]
[353485890,1739877089834,-500.0,0.00014356,2]
[353485891,1739877089843,-500.0,0.00014356,2]
[353485892,1739877089853,-621.95,0.00014356,2]
[353485893,1739877089863,-1487.86,0.00014356,2]
[353485894,1739877089872,-500.0,0.00014356,2]
[353485895,1739877089882,-500.0,0.00014356,2]
[353485896,1739877089891,-500.0,0.00014356,2]
[353485897,1739877089901,-1097.77,0.00014356,2]
[353485898,1739877089911,-666.53,0.00014356,2]
[353485899,1739877089921,-686.57,0.00014356,2]
[353485900,1739877089932,-1429.19,0.00014356,2]
[353485901,1739877089943,-500.0,0.00014356,2]
[353485902,1739877089953,-795.84,0.00014356,2]
[353485903,1739877089963,-395.96220943,0.00014356,2]
[353485904,1739877089973,-548.63,0.00014356,2]
[353485905,1739877089983,-2430.58,0.00014356,2]
[353485906,1739877089993,-500.0,0.00014356,2]
[353485907,1739877090003,-500.0,0.00014356,2]
[353485908,1739877090013,-500.0,0.00014356,2]
[353485909,1739877090022,-500.0,0.00014356,2]
[353485910,1739877090033,-500.0,0.00014356,2]
[353485911,1739877090043,-500.0,0.00014356,2]
[353485912,1739877090053,-500.0,0.00014356,2]
[353485913,1739877090062,-500.0,0.00014356,2]
[353485914,1739877090072,-500.0,0.00014356,2]
[353485915,1739877090082,-518.93,0.00014356,2]
[353485916,1739877090091,-500.0,0.00014356,2]
[353485917,1739877090100,-705.88,0.00014356,2]
[353485918,1739877090110,-557.81,0.00014356,2]
[353485919,1739877090121,-500.0,0.00014356,2]
[353485920,1739877090131,-500.0,0.00014356,2]
[353485921,1739877090141,-193.51234265,0.00014356,2]
[353485922,1739877090151,-500.0,0.00014356,2]
[353485923,1739877090161,-1474.07,0.00014356,2]
[353485924,1739877090171,-776.58,0.00014356,2]
[353485925,1739877090182,-544.55,0.00014356,2]
[353485926,1739877090191,-748.3,0.00014356,2]
[353485927,1739877090201,-500.0,0.00014356,2]
[353485928,1739877090210,-522.76,0.00014356,2]
[353485929,1739877090220,-578.59,0.00014356,2]
[353485930,1739877090230,-500.0,0.00014356,2]
[353485931,1739877090239,-500.0,0.00014356,2]
[353485932,1739877090248,-500.0,0.00014356,2]
[353485933,1739877090258,-500.0,0.00014356,2]
[353485934,1739877090267,-982.49,0.00014356,2]
[353485935,1739877090277,-500.0,0.00014356,2]
[353485936,1739877090287,-500.0,0.00014356,2]
[353485937,1739877090296,-500.0,0.00014356,2]
[353485938,1739877090306,-1436.02,0.00014356,2]
[353485939,1739877090316,-606.5,0.00014356,2]
[353485940,1739877090325,-500.0,0.00014356,2]
[353485941,1739877090335,-709.89,0.00014356,2]
[353485942,1739877090345,-500.0,0.00014356,2]
[353485943,1739877090355,-787.7,0.00014356,2]
[353485944,1739877090365,-464.0181926,0.00014356,2]
[353485945,1739877090375,-500.0,0.00014356,2]
[353485946,1739877090384,-500.0,0.00014356,2]
[353485947,1739877090394,-500.0,0.00014356,2]
[353485948,1739877090404,-655.98,0.00014356,2]
[353485949,1739877090414,-500.0,0.00014356,2]
[353485950,1739877090423,-500.0,0.00014356,2]
[353485951,1739877090433,-500.0,0.00014356,2]
[353485952,1739877090443,-500.0,0.00014356,2]
[353485953,1739877090452,-500.0,0.00014356,2]
[353485954,1739877090462,-656.46,0.00014356,2]
[353485955,1739877090472,-900.9,0.00014356,2]
[353485956,1739877090482,-779.15,0.00014356,2]
[353485957,1739877090491,-500.0,0.00014356,2]